bitfinex-derivatives/quotes_BTCF0:USTF0_20241019
["timestamp","ask_amount","ask_price","bid_price","bid_amount"]
[1729318736881,0.0001,68441.0,68440.0,0.0945973]
[1729318737179,0.0001,68441.0,68440.0,0.4553973]
[1729318739570,0.0001,68441.0,68440.0,0.0945973]
[1729318739876,0.0001,68441.0,68440.0,0.4553973]
[1729318742678,0.0001,68441.0,68440.0,0.0945973]
[1729318742869,0.0001,68441.0,68440.0,0.4553973]
[1729318748576,0.0001,68441.0,68440.0,0.55144508]
[1729318749182,0.0001,68441.0,68440.0,0.4553973]
[1729318756288,0.0001,68441.0,68440.0,0.65359909]
[1729318757589,0.0001,68441.0,68440.0,0.55765165]
[1729318760477,0.0001,68441.0,68440.0,0.65355045]
[1729318760679,0.0001,68441.0,68440.0,0.55765165]
[1729318761188,0.0001,68441.0,68440.0,0.65357989]
[1729318763283,0.0001,68441.0,68440.0,0.4553973]
[1729318768490,0.0001,68441.0,68440.0,0.0945973]
[1729318768685,0.0001,68441.0,68440.0,0.4553973]
[1729318769793,0.0001,68441.0,68440.0,0.0945973]
[1729318769984,0.0001,68441.0,68440.0,0.4553973]
[1729318772486,0.0001,68441.0,68440.0,0.0945973]
[1729318772686,0.0001,68441.0,68440.0,0.4553973]
[1729318773190,0.3921,68458.0,68440.0,0.4553973]
[1729318773191,0.0331,68462.0,68457.0,0.073034]
[1729318773387,0.3608,68479.0,68445.0,0.073047]
[1729318773388,0.073024,68468.0,68464.0,0.073027]
[1729318774288,0.433825,68466.0,68464.0,0.073027]
[1729318774795,0.3608,68466.0,68464.0,0.073027]
[1729318775395,0.073022,68469.0,68464.0,0.073027]
[1729318776988,0.073023,68468.0,68464.0,0.073027]
[1729318779492,0.073024,68467.0,68464.0,0.073027]
[1729318779994,0.073024,68467.0,68464.0,0.09359583]
[1729318780793,0.07302,68471.0,68464.0,0.09359583]
[1729318780993,0.073022,68469.0,68464.0,0.09359583]
[1729318781595,0.3911,68472.0,68464.0,0.09359583]
[1729318781596,0.0303,68472.0,68464.0,0.09359583]
[1729318781897,0.073023,68468.0,68464.0,0.09359583]
[1729318784292,0.07521732,68465.0,68464.0,0.09359583]
[1729318788295,0.00219132,68465.0,68464.0,0.09359583]
[1729318788496,0.073022,68469.0,68468.0,0.073023]
[1729318793508,0.073022,68469.0,68464.0,0.02056883]
[1729318793705,0.0001,68465.0,68461.0,0.3608]
[1729318794006,0.0001,68465.0,68464.0,0.073027]
[1729318811208,0.073126,68465.0,68464.0,0.073027]
[1729318819512,0.073126,68465.0,68464.0,0.433827]
[1729318823210,0.0001,68465.0,68464.0,0.433827]
[1729318824118,0.073126,68465.0,68464.0,0.433827]
[1729318825621,0.0001,68465.0,68464.0,0.433827]
[1729318828718,0.073126,68465.0,68464.0,0.433827]
[1729318828919,0.0001,68465.0,68464.0,0.433827]
[1729318830325,0.3608,68481.0,68478.0,0.073011]
[1729318830326,0.073011,68479.0,68478.0,0.073011]
[1729318830527,0.073011,68479.0,68478.0,0.08038817]
[1729318830927,0.073011,68479.0,68478.0,0.00737717]
[1729318831223,0.073014,68476.0,68475.0,0.073015]
[1729318831428,0.073114,68476.0,68475.0,0.08034175]
[1729318834830,0.073114,68476.0,68475.0,0.10108083]
[1729318842745,0.073114,68476.0,68475.0,0.02073908]
[1729318843038,0.073114,68476.0,68473.0,0.073017]
[1729318843039,0.073016,68474.0,68473.0,0.073017]
[1729318844943,0.0002,68476.0,68470.0,0.02067163]
[1729318845144,0.073119,68473.0,68472.0,0.073018]
[1729318855645,0.6001,68473.0,68469.0,0.073021]
[1729318855844,0.0001,68470.0,68469.0,0.073021]
[1729318856449,0.673121,68470.0,68469.0,0.073021]
[1729318859348,0.6001,68470.0,68467.0,0.0001]
[1729318859554,0.6001,68470.0,68464.0,0.073027]
[1729318859555,0.073028,68465.0,68464.0,0.073027]
[1729318859761,0.073128,68465.0,68464.0,0.073027]
[1729318860472,0.0001,68465.0,68464.0,0.073027]
[1729318862652,0.073126,68465.0,68464.0,0.073027]
[1729318881170,0.073027,68464.0,68463.0,0.3608]
[1729318881470,0.073027,68464.0,68463.0,0.433828]
[1729318881672,0.073127,68464.0,68463.0,0.433828]
[1729318882666,0.073127,68464.0,68463.0,0.073028]
[1729318882865,0.073127,68464.0,68463.0,0.433828]
[1729318884674,0.073127,68464.0,68463.0,0.073028]
[1729318884874,0.073127,68464.0,68463.0,0.433828]
[1729318887473,0.073029,68462.0,68461.0,0.00219075]
[1729318887777,0.073029,68462.0,68449.0,0.02146967]
[1729318887778,0.073042,68450.0,68449.0,0.02146967]
[1729318887983,0.073047,68445.0,68444.0,0.00219148]
[1729318888163,0.073147,68445.0,68444.0,0.00219148]
[1729318891074,0.0001,68445.0,68443.0,0.0627]
[1729318891277,0.073148,68444.0,68443.0,0.0627]
[1729318892470,0.073148,68444.0,68443.0,0.08346279]
[1729318895967,0.073148,68444.0,68443.0,0.05096279]
[1729318896167,0.073148,68444.0,68443.0,0.02076279]
[1729318896380,0.073148,68444.0,68441.0,0.3608]
[1729318896381,0.07305,68442.0,68441.0,0.3608]
[1729318896675,0.07315,68442.0,68441.0,0.3608]
[1729318897783,0.0001,68442.0,68440.0,0.08032213]
[1729318898009,0.073151,68441.0,68440.0,0.10132728]
[1729318898481,0.073151,68441.0,68440.0,0.46212728]
[1729318906775,0.073151,68441.0,68440.0,0.10132728]
[1729318906981,0.073151,68441.0,68440.0,0.46212728]
[1729318910382,0.073151,68441.0,68440.0,0.10132728]
[1729318910593,0.073151,68441.0,68440.0,0.38180515]
[1729318911181,0.073058,68435.0,68434.0,0.0321]
[1729318911492,0.073158,68435.0,68434.0,0.05358728]
[1729318916683,0.073158,68435.0,68434.0,0.12664628]
[1729318921401,0.334058,68441.0,68434.0,0.12664628]
[1729318921590,0.334058,68441.0,68434.0,0.12674628]
[1729318922506,0.073058,68435.0,68434.0,0.12674628]
[1729318939106,0.073058,68435.0,68434.0,0.05368728]
[1729318943619,0.073058,68435.0,68434.0,0.41448728]
[1729318960213,0.073058,68435.0,68434.0,0.02158728]
[1729318960824,0.073058,68435.0,68434.0,0.0001]
[1729318961121,0.073058,68435.0,68429.0,0.00219201]
[1729318961122,0.073063,68430.0,68429.0,0.00219201]
[1729318961325,0.073163,68430.0,68429.0,0.00219201]
[1729318961825,0.073163,68430.0,68429.0,0.02333437]
[1729318962027,0.073163,68430.0,68429.0,0.00219201]
[1729318965623,0.073067,68426.0,68425.0,0.02819122]
[1729318965832,0.073167,68426.0,68425.0,0.00726361]
[1729318968127,0.073069,68425.0,68424.0,0.38195584]
[1729318968334,0.073169,68425.0,68424.0,0.38195584]
[1729318968523,0.073169,68425.0,68424.0,0.38944053]
[1729318970828,0.073169,68425.0,68424.0,0.02864053]
[1729318971125,0.073071,68423.0,68422.0,0.3928]
[1729318971325,0.073171,68423.0,68422.0,0.465872]
[1729318971534,0.073171,68423.0,68422.0,0.47312566]
[1729318972236,0.073171,68423.0,68422.0,0.4936793]
[1729318974436,0.0001,68423.0,68422.0,0.4936793]
[1729318975135,0.0001,68423.0,68422.0,0.48642564]
[1729318980132,0.0001,68423.0,68422.0,0.51822564]
[1729318981529,0.0001,68423.0,68422.0,0.15742564]
[1729318981735,0.0001,68423.0,68422.0,0.51822564]
[1729318986535,0.073171,68423.0,68422.0,0.51822564]
[1729318987945,0.073171,68423.0,68422.0,0.15742564]
[1729318988139,0.073171,68423.0,68422.0,0.51822564]
[1729318993152,0.073171,68423.0,68422.0,0.48622564]
[1729318993346,0.073171,68423.0,68422.0,0.41315364]
[1729318994448,0.073171,68423.0,68422.0,0.38135364]
[1729318995448,0.073171,68423.0,68422.0,0.3608]
[1729318995661,0.073171,68423.0,68422.0,0.36817444]
[1729318996056,0.073171,68423.0,68422.0,0.00737444]
[1729318996262,0.073171,68423.0,68422.0,0.3608]
[1729318996462,0.073171,68423.0,68422.0,0.36827388]
[1729319004471,0.073171,68423.0,68422.0,0.00747388]
[1729319004677,0.073072,68422.0,68420.0,0.073074]
[1729319004876,0.073072,68422.0,68421.0,0.3608]
[1729319005077,0.073072,68422.0,68420.0,0.08052741]
[1729319005377,0.073072,68422.0,68421.0,0.3608]
[1729319005769,0.0001,68423.0,68420.0,0.08052741]
[1729319005972,0.073173,68421.0,68420.0,0.08052741]
[1729319006170,0.073173,68421.0,68420.0,0.44132741]
[1729319011973,0.0001,68421.0,68420.0,0.44132741]
[1729319031494,0.0001,68421.0,68420.0,0.08052741]
[1729319031695,0.0001,68421.0,68420.0,0.44132741]
[1729319032893,0.0001,68421.0,68420.0,0.08052741]
[1729319033085,0.0001,68421.0,68420.0,0.44132741]
[1729319033290,0.0001,68421.0,68420.0,0.08052741]
[1729319033490,0.0001,68421.0,68420.0,0.44132741]
[1729319034193,0.0001,68421.0,68420.0,0.54359916]
[1729319034694,0.0001,68421.0,68420.0,0.08052741]
[1729319034900,0.0001,68421.0,68420.0,0.44132741]
[1729319035095,0.0001,68421.0,68420.0,0.54359916]
[1729319037404,0.0001,68421.0,68420.0,0.64039206]
[1729319040005,0.0001,68421.0,68420.0,0.64039814]
[1729319040591,0.0001,68421.0,68420.0,0.64047162]
[1729319041296,0.0001,68421.0,68420.0,0.53812639]
[1729319041905,0.0001,68421.0,68420.0,0.64047367]
[1729319043397,0.0001,68421.0,68420.0,0.64046955]
[1729319044209,0.0001,68421.0,68420.0,0.44132741]
[1729319048094,0.0001,68421.0,68420.0,0.08052741]
[1729319048299,0.0001,68421.0,68420.0,0.44132741]
[1729319048507,0.073173,68421.0,68420.0,0.44132741]
[1729319049902,0.073173,68421.0,68420.0,0.08052741]
[1729319050098,0.073173,68421.0,68420.0,0.44132741]
[1729319055311,0.073173,68421.0,68420.0,0.08052741]
[1729319055510,0.073173,68421.0,68420.0,0.44132741]
[1729319057610,0.073173,68421.0,68420.0,0.08052741]
[1729319057810,0.073173,68421.0,68420.0,0.44132741]
[1729319058512,0.073173,68421.0,68420.0,0.08052741]
[1729319058713,0.073173,68421.0,68420.0,0.44132741]
[1729319059814,0.073173,68421.0,68420.0,0.08052741]
[1729319060016,0.073173,68421.0,68420.0,0.44132741]
[1729319060612,0.073173,68421.0,68420.0,0.64039338]
[1729319061208,0.073173,68421.0,68420.0,0.5380461]
[1729319063423,0.073173,68421.0,68420.0,0.64039828]
[1729319064329,0.073173,68421.0,68420.0,0.44132741]
[1729319067028,0.073173,68421.0,68420.0,0.08052741]
[1729319067330,0.073173,68421.0,68420.0,0.44132741]
[1729319067523,0.073173,68421.0,68420.0,0.08052741]
[1729319067729,0.073173,68421.0,68420.0,0.44132741]
[1729319067931,0.073173,68421.0,68420.0,0.08052741]
[1729319068120,0.073173,68421.0,68420.0,0.44132741]
[1729319068815,0.073173,68421.0,68420.0,0.08052741]
[1729319069014,0.073173,68421.0,68420.0,0.44132741]
[1729319071431,0.073173,68421.0,68420.0,0.64039509]
[1729319073124,0.073173,68421.0,68420.0,0.53804291]
[1729319074625,0.073173,68421.0,68420.0,0.44132741]
[1729319078029,0.073173,68421.0,68420.0,0.36825341]
[1729319081931,0.073173,68421.0,68420.0,0.00745341]
[1729319082134,0.073076,68418.0,68417.0,0.3608]
[1729319082330,0.073176,68418.0,68417.0,0.36795789]
[1729319082540,0.073176,68418.0,68417.0,0.00715789]
[1729319082733,0.073176,68418.0,68417.0,0.433877]
[1729319083038,0.073176,68418.0,68417.0,0.44131348]
[1729319084932,0.073176,68418.0,68417.0,0.08051348]
[1729319085128,0.073176,68418.0,68417.0,0.44131348]
[1729319086735,0.073176,68418.0,68417.0,0.08051348]
[1729319086938,0.073176,68418.0,68417.0,0.44131348]
[1729319092044,0.073176,68418.0,68417.0,0.08051348]
[1729319092246,0.073176,68418.0,68417.0,0.44131348]
[1729319096346,0.073176,68418.0,68417.0,0.08051348]
[1729319096851,0.073176,68418.0,68417.0,0.44131348]
[1729319097349,0.073176,68418.0,68417.0,0.08051348]
[1729319097552,0.073176,68418.0,68417.0,0.44131348]
[1729319097850,0.073176,68418.0,68417.0,0.08051348]
[1729319098250,0.073176,68418.0,68417.0,0.44131348]
[1729319098851,0.073176,68418.0,68417.0,0.08051348]
[1729319099049,0.073176,68418.0,68417.0,0.44131348]
[1729319100947,0.073176,68418.0,68417.0,0.08051348]
[1729319101152,0.073176,68418.0,68417.0,0.44131348]
[1729319103355,0.073176,68418.0,68417.0,0.08051348]
[1729319103556,0.073176,68418.0,68417.0,0.44131348]
[1729319104259,0.073176,68418.0,68417.0,0.00743648]
[1729319104454,0.073176,68418.0,68417.0,0.3608]
[1729319104756,0.073176,68418.0,68417.0,0.36804341]
[1729319107658,0.073176,68418.0,68417.0,0.00724341]
[1729319107959,0.073176,68418.0,68416.0,0.0001]
[1729319107960,0.073077,68417.0,68416.0,0.0001]
[1729319108256,0.073177,68417.0,68416.0,0.0001]
[1729319108563,0.073177,68417.0,68416.0,0.00752183]
[1729319108752,0.073177,68417.0,68416.0,0.0001]
[1729319109260,0.073177,68417.0,68416.0,0.00742531]
[1729319112751,0.0001,68417.0,68416.0,0.44130331]
[1729319113656,0.0001,68417.0,68416.0,0.46233501]
[1729319115154,0.0001,68417.0,68416.0,0.10153501]
[1729319117561,0.0001,68417.0,68416.0,0.13373501]
[1729319117755,0.0001,68417.0,68416.0,0.16423501]
[1729319121067,0.0001,68417.0,68416.0,0.52503501]
[1729319121457,0.0001,68417.0,68416.0,0.16423501]
[1729319121656,0.0001,68417.0,68416.0,0.52503501]
[1729319127065,0.0001,68417.0,68416.0,0.52493501]
[1729319129971,0.073177,68417.0,68416.0,0.52493501]
[1729319137173,0.073177,68417.0,68416.0,0.16413501]
[1729319142778,0.073177,68417.0,68416.0,0.13363501]
[1729319153472,0.073177,68417.0,68416.0,0.02835701]
[1729319153675,0.073079,68415.0,68414.0,0.3608]
[1729319153875,0.073179,68415.0,68414.0,0.3608]
[1729319154281,0.073179,68415.0,68414.0,0.38864015]
[1729319155284,0.073179,68415.0,68414.0,0.02784015]
[1729319155482,0.0001,68415.0,68410.0,0.073084]
[1729319155787,0.0001,68411.0,68410.0,0.073084]
[1729319155988,0.0001,68411.0,68410.0,0.08052981]
[1729319158188,0.0001,68411.0,68410.0,0.10128506]
[1729319168490,0.0001,68411.0,68410.0,0.46208506]
[1729319169192,0.0001,68411.0,68410.0,0.10128506]
[1729319169392,0.0001,68411.0,68410.0,0.46208506]
[1729319182301,0.0001,68411.0,68410.0,0.10128506]
[1729319182508,0.0001,68411.0,68410.0,0.46208506]
[1729319183216,0.0001,68411.0,68410.0,0.10128506]
[1729319183414,0.0001,68411.0,68410.0,0.46208506]
[1729319183712,0.0001,68411.0,68410.0,0.66174433]
[1729319184301,0.0001,68411.0,68410.0,0.56444057]
[1729319185102,0.0001,68411.0,68410.0,0.46208506]
[1729319186314,0.0001,68411.0,68410.0,0.10128506]
[1729319186506,0.0001,68411.0,68410.0,0.46208506]
[1729319188615,0.0001,68411.0,68410.0,0.10128506]
[1729319188912,0.0001,68411.0,68410.0,0.46208506]
[1729319189503,0.0001,68411.0,68410.0,0.10128506]
[1729319189707,0.0001,68411.0,68410.0,0.46208506]
[1729319192614,0.0001,68411.0,68410.0,0.10128506]
[1729319192806,0.0001,68411.0,68410.0,0.46208506]
[1729319199622,0.0001,68411.0,68410.0,0.55928565]
[1729319200021,0.0001,68411.0,68410.0,0.46208506]
[1729319201112,0.0001,68411.0,68410.0,0.55924107]
[1729319201312,0.0001,68411.0,68410.0,0.66158463]
[1729319201820,0.0001,68411.0,68410.0,0.30078463]
[1729319202125,0.0001,68411.0,68410.0,0.46208506]
[1729319204020,0.0001,68411.0,68410.0,0.10128506]
[1729319204220,0.0001,68411.0,68410.0,0.46208506]
[1729319215738,0.0001,68411.0,68410.0,0.10128506]
[1729319216045,0.0001,68411.0,68410.0,0.46208506]
[1729319216534,0.0001,68411.0,68410.0,0.55926906]
[1729319218423,0.0001,68411.0,68410.0,0.19846906]
[1729319218631,0.0001,68411.0,68410.0,0.55926906]
[1729319218935,0.0001,68411.0,68410.0,0.19846906]
[1729319219138,0.0001,68411.0,68410.0,0.55926906]
[1729319220033,0.0001,68411.0,68410.0,0.46208506]
[1729319225038,0.0001,68411.0,68410.0,0.55926997]
[1729319225436,0.0001,68411.0,68410.0,0.46208506]
[1729319227252,0.0001,68411.0,68410.0,0.10128506]
[1729319227435,0.0001,68411.0,68410.0,0.46208506]
[1729319231239,0.0001,68411.0,68410.0,0.10128506]
[1729319231445,0.0001,68411.0,68410.0,0.46208506]
[1729319233945,0.0001,68411.0,68410.0,0.10128506]
[1729319234139,0.0001,68411.0,68410.0,0.46208506]
[1729319236351,0.0001,68411.0,68410.0,0.6616346]
[1729319237546,0.0001,68411.0,68410.0,0.19846762]
[1729319237860,0.0001,68411.0,68410.0,0.55926762]
[1729319242151,0.0001,68411.0,68410.0,0.5592635]
[1729319244151,0.0001,68411.0,68410.0,0.46208506]
[1729319253072,0.0001,68411.0,68410.0,0.66168099]
[1729319253478,0.0001,68411.0,68410.0,0.30088099]
[1729319253779,0.0001,68411.0,68410.0,0.66168099]
[1729319254770,0.0001,68411.0,68410.0,0.55930632]
[1729319257080,0.0001,68411.0,68410.0,0.55930831]
[1729319259979,0.0001,68411.0,68410.0,0.56446019]
[1729319260279,0.0001,68411.0,68410.0,0.55930861]
[1729319262084,0.0001,68411.0,68410.0,0.55930704]
[1729319262977,0.0001,68411.0,68410.0,0.19850704]
[1729319263183,0.0001,68411.0,68410.0,0.55930704]
[1729319264778,0.073183,68411.0,68410.0,0.02075525]
[1729319264978,0.0001,68411.0,68403.0,0.3608]
[1729319265171,0.073191,68404.0,68403.0,0.3608]
[1729319267677,0.073092,68403.0,68402.0,0.79113798]
[1729319267981,0.073192,68403.0,68402.0,0.79113798]
[1729319268280,0.103492,68403.0,68402.0,0.79113798]
[1729319269580,0.134092,68403.0,68402.0,0.79113798]
[1729319281897,0.103492,68403.0,68402.0,0.79113798]
[1729319284897,0.073192,68403.0,68402.0,0.79113798]
[1729319311826,0.073192,68403.0,68402.0,0.87891233]
[1729319314717,0.0001,68403.0,68402.0,0.87891233]
[1729319314926,0.0001,68403.0,68402.0,0.86423098]
[1729319315321,0.073192,68403.0,68402.0,0.86423098]
[1729319316511,0.073192,68403.0,68402.0,0.95200174]
[1729319317725,0.073192,68403.0,68402.0,0.87890874]
[1729319319818,0.073192,68403.0,68402.0,0.79113798]
[1729319326925,0.073192,68403.0,68402.0,0.87890874]
[1729319327231,0.073192,68403.0,68402.0,0.79113798]
[1729319328031,0.073192,68403.0,68402.0,0.87890874]
[1729319330830,0.073192,68403.0,68402.0,0.79113798]
[1729319331231,0.073192,68403.0,68402.0,0.87890874]
[1729319334832,0.073192,68403.0,68402.0,0.79113798]
[1729319348047,0.073192,68403.0,68402.0,0.86423098]
[1729319363771,0.073192,68403.0,68402.0,0.79113798]
[1729319371878,0.073192,68403.0,68402.0,0.87890874]
[1729319375675,0.073192,68403.0,68402.0,0.79113798]
[1729319382685,0.073192,68403.0,68402.0,0.87890874]
[1729319386990,0.073192,68403.0,68402.0,0.79113798]
[1729319387989,0.073092,68403.0,68402.0,0.79113798]
[1729319395001,0.073092,68403.0,68402.0,0.87890874]
[1729319398197,0.073092,68403.0,68402.0,0.79113798]
[1729319400502,0.073092,68403.0,68402.0,0.95200174]
[1729319401103,0.073092,68403.0,68402.0,0.95198528]
[1729319402094,0.073092,68403.0,68402.0,0.86423098]
[1729319402990,0.073092,68403.0,68402.0,0.95198528]
[1729319403196,0.073092,68403.0,68402.0,0.86423098]
[1729319403901,0.073092,68403.0,68402.0,0.95198528]
[1729319408798,0.073092,68403.0,68402.0,0.79113798]
[1729319417807,0.073092,68403.0,68402.0,0.87889228]
[1729319419317,0.073092,68403.0,68402.0,0.86423098]
[1729319425211,0.073092,68403.0,68402.0,1.22503098]
[1729319433222,0.073092,68403.0,68402.0,0.86423098]
[1729319433421,0.073092,68403.0,68402.0,1.22503098]
[1729319437720,0.073092,68403.0,68402.0,0.86423098]
[1729319437931,0.073092,68403.0,68402.0,1.22503098]
[1729319438128,0.073092,68403.0,68402.0,0.86423098]
[1729319438428,0.073092,68403.0,68402.0,1.22503098]
[1729319440923,0.073092,68403.0,68402.0,0.86423098]
[1729319441224,0.073092,68403.0,68402.0,1.22503098]
[1729319441830,0.073092,68403.0,68402.0,0.86423098]
[1729319442134,0.073092,68403.0,68402.0,1.22503098]
[1729319443633,0.073092,68403.0,68402.0,0.86423098]
[1729319443823,0.073092,68403.0,68402.0,1.22503098]
[1729319452335,0.073084,68411.0,68410.0,0.073084]
[1729319452525,0.073084,68411.0,68410.0,0.44113977]
[1729319453236,0.073077,68417.0,68416.0,0.073077]
[1729319453732,0.073077,68417.0,68416.0,0.08044247]
[1729319454032,0.073077,68417.0,68416.0,0.073077]
[1729319456932,0.00219266,68422.0,68415.0,0.36803675]
[1729319457139,0.073076,68420.0,68419.0,0.073073]
[1729319458433,0.07526466,68422.0,68421.0,0.073073]
[1729319459628,0.07526466,68422.0,68421.0,0.433873]
[1729319471749,0.07526466,68422.0,68421.0,0.073073]
[1729319472057,0.07526466,68422.0,68421.0,0.433873]
[1729319491656,0.07526466,68422.0,68421.0,0.073073]
[1729319491861,0.07526466,68422.0,68421.0,0.433873]
[1729319492561,0.00219266,68422.0,68419.0,0.073075]
[1729319492761,0.073274,68420.0,68419.0,0.073075]
[1729319493464,0.073075,68419.0,68418.0,0.3608]
[1729319493666,0.073275,68419.0,68418.0,0.3608]
[1729319498967,0.0002,68419.0,68416.0,0.073478]
[1729319499171,0.073277,68417.0,68416.0,0.073478]
[1729319520391,0.0002,68417.0,68416.0,0.073478]
[1729319521685,0.0002,68417.0,68416.0,0.434278]
[1729319521983,0.0002,68417.0,68416.0,0.073478]
[1729319522184,0.0002,68417.0,68416.0,0.434278]
[1729319522779,0.0002,68417.0,68416.0,0.073478]
[1729319523386,0.0002,68417.0,68416.0,0.434278]
[1729319525083,0.0002,68417.0,68416.0,0.073478]
[1729319525284,0.0002,68417.0,68416.0,0.434278]
[1729319527386,0.0002,68417.0,68416.0,0.073478]
[1729319527589,0.0002,68417.0,68416.0,0.434278]
[1729319528186,0.0002,68417.0,68416.0,0.073478]
[1729319528491,0.0002,68417.0,68416.0,0.434278]
[1729319531100,0.0002,68417.0,68416.0,0.467578]
[1729319532701,0.073277,68417.0,68416.0,0.073478]
[1729319532895,0.073277,68417.0,68416.0,0.0004]
[1729319537994,0.073277,68417.0,68416.0,0.073478]
[1729319551100,0.073277,68417.0,68416.0,0.0004]
[1729319551508,0.073277,68417.0,68416.0,0.073478]
[1729319562016,0.073277,68417.0,68416.0,0.0004]
[1729319569924,0.073277,68417.0,68416.0,0.073478]
[1729319575124,0.073277,68417.0,68416.0,0.16123135]
[1729319575626,0.073277,68417.0,68416.0,0.08815335]
[1729319577325,0.073277,68417.0,68416.0,0.08795335]
[1729319579834,0.073277,68417.0,68416.0,0.08775335]
[1729319580221,0.073277,68417.0,68416.0,0.16083135]
[1729319581026,0.073277,68417.0,68416.0,0.073078]
[1729319583226,0.073078,68416.0,68415.0,0.0288439]
[1729319583638,0.073278,68416.0,68415.0,0.0288439]
[1729319587437,0.073278,68416.0,68415.0,0.1019229]
[1729319589641,0.073278,68416.0,68415.0,0.0288439]
[1729319597246,0.073278,68416.0,68415.0,0.0286439]
[1729319597432,0.073278,68416.0,68414.0,0.07308]
[1729319597433,0.073079,68415.0,68414.0,0.07308]
[1729319597638,0.073279,68415.0,68414.0,0.07308]
[1729319597851,0.073279,68415.0,68414.0,0.08055238]
[1729319598446,0.073279,68415.0,68414.0,0.10182854]
[1729319602338,0.073279,68415.0,68414.0,0.02874854]
[1729319602548,0.073279,68415.0,68414.0,0.07308]
[1729319602752,0.073279,68415.0,68414.0,0.08040759]
[1729319610056,0.073279,68415.0,68414.0,0.00732759]
[1729319610262,0.073081,68413.0,68411.0,0.12719606]
[1729319610461,0.0002,68412.0,68411.0,0.12719606]
[1729319610660,0.0002,68412.0,68411.0,0.13458946]
[1729319624771,0.0002,68415.0,68414.0,0.07308]
[1729319627367,0.0002,68415.0,68414.0,0.43388]
[1729319629562,0.0002,68415.0,68414.0,0.07308]
[1729319629775,0.0002,68415.0,68414.0,0.43388]
[1729319638771,0.0002,68415.0,68414.0,0.79468]
[1729319639976,0.0002,68415.0,68414.0,0.07308]
[1729319640188,0.0002,68415.0,68414.0,0.79468]
[1729319643576,0.073279,68415.0,68414.0,0.79468]
[1729319645183,0.073279,68415.0,68414.0,0.43388]
[1729319647383,0.0002,68415.0,68414.0,0.43388]
[1729319648971,0.073279,68415.0,68414.0,0.43388]
[1729319649576,0.073279,68415.0,68414.0,0.07308]
[1729319649782,0.073279,68415.0,68414.0,0.43388]
[1729319652195,0.073279,68415.0,68414.0,0.3608]
[1729319655482,0.0002,68415.0,68414.0,0.3608]
[1729319655788,0.073075,68420.0,68414.0,0.3608]
[1729319655982,0.073075,68420.0,68414.0,0.361]
[1729319656882,0.073075,68420.0,68419.0,0.3608]
[1729319657690,0.073075,68420.0,68418.0,0.073076]
[1729319657876,0.073075,68420.0,68419.0,0.3608]
[1729319659990,0.0314,68423.0,68418.0,0.073076]
[1729319660191,0.073275,68419.0,68418.0,0.073076]
[1729319660494,0.073275,68419.0,68418.0,0.433876]
[1729319661991,0.073275,68419.0,68418.0,0.45489619]
[1729319668985,0.073275,68419.0,68418.0,0.09409619]
[1729319669185,0.073275,68419.0,68418.0,0.45489619]
[1729319671300,0.073275,68419.0,68418.0,0.09409619]
[1729319671489,0.073275,68419.0,68418.0,0.45489619]
[1729319672194,0.073275,68419.0,68418.0,0.09409619]
[1729319672494,0.073275,68419.0,68418.0,0.45489619]
[1729319679397,0.073275,68419.0,68418.0,0.09409619]
[1729319679607,0.073275,68419.0,68418.0,0.45489619]
[1729319682512,0.073275,68419.0,68418.0,0.09409619]
[1729319682715,0.073275,68419.0,68418.0,0.45489619]
[1729319688407,0.073275,68419.0,68418.0,0.09409619]
[1729319688607,0.073275,68419.0,68418.0,0.45489619]
[1729319694309,0.073275,68419.0,68418.0,0.09409619]
[1729319694519,0.073275,68419.0,68418.0,0.45489619]
[1729319700605,0.00219239,68434.0,68431.0,0.073062]
[1729319700812,0.073061,68432.0,68431.0,0.08054695]
[1729319701111,0.073061,68432.0,68431.0,0.11144695]
[1729319701819,0.073061,68432.0,68431.0,0.103962]
[1729319703620,0.073061,68432.0,68431.0,0.464762]
[1729319704319,0.073061,68432.0,68431.0,0.48549952]
[1729319705411,0.00219239,68434.0,68433.0,0.07306]
[1729319706513,0.07525139,68434.0,68433.0,0.07306]
[1729319706819,0.07525139,68434.0,68433.0,0.43386]
[1729319708619,0.07525139,68434.0,68433.0,0.07306]
[1729319708818,0.07525139,68434.0,68433.0,0.43386]
[1729319709518,0.00219239,68434.0,68433.0,0.43386]
[1729319712927,0.07525139,68434.0,68433.0,0.43386]
[1729319724834,0.073059,68434.0,68433.0,0.43386]
[1729319728236,0.073059,68434.0,68433.0,0.07306]
[1729319728432,0.073059,68434.0,68433.0,0.43386]
[1729319728637,0.073059,68434.0,68433.0,0.07306]
[1729319728832,0.073059,68434.0,68433.0,0.43386]
[1729319733435,0.073059,68434.0,68433.0,0.07306]
[1729319733640,0.073059,68434.0,68433.0,0.43386]
[1729319747255,0.073059,68434.0,68433.0,0.07306]
[1729319747446,0.073059,68434.0,68433.0,0.43386]
[1729319748559,0.073059,68434.0,68433.0,0.07306]
[1729319748754,0.073059,68434.0,68433.0,0.43386]
[1729319758960,0.073059,68434.0,68433.0,0.07306]
[1729319759154,0.073059,68434.0,68433.0,0.43386]
[1729319760161,0.073056,68438.0,68437.0,0.073054]
[1729319766272,0.073056,68438.0,68437.0,0.433854]
[1729319770865,0.073056,68438.0,68437.0,0.3608]
[1729319771968,0.073056,68438.0,68434.0,0.3608]
[1729319772157,0.073258,68435.0,68434.0,0.3608]
[1729319775358,0.0002,68435.0,68433.0,0.07306]
[1729319775575,0.073059,68434.0,68433.0,0.07306]
[1729319775764,0.073259,68434.0,68433.0,0.43386]
[1729319780768,0.073259,68434.0,68433.0,0.07306]
[1729319780974,0.073259,68434.0,68433.0,0.43386]
[1729319789368,0.073259,68434.0,68433.0,0.07306]
[1729319789573,0.073259,68434.0,68433.0,0.43386]
[1729319791179,0.073259,68434.0,68433.0,0.07306]
[1729319791381,0.073259,68434.0,68433.0,0.43386]
[1729319808291,0.073259,68434.0,68433.0,0.07306]
[1729319808481,0.073259,68434.0,68433.0,0.43386]
[1729319811495,0.073259,68434.0,68433.0,0.07306]